bitfinex/quotes_SOLUSD_20241022
["timestamp","ask_amount","ask_price","bid_price","bid_amount"]
[1729576961845,14.7981,168.94,168.82,80.54266791]
[1729576961846,20.0,168.93,168.82,80.54266791]
[1729576962049,14.7981,168.94,168.82,80.54266791]
[1729576962050,5.9213,168.88,168.82,80.54266791]
[1729576964254,5.9213,168.88,168.83,23.776884]
[1729576965645,5.9213,168.88,168.82,80.54266791]
[1729576966742,5.9213,168.88,168.84,11.05597242]
[1729576967656,5.9209,168.9,168.84,11.05597242]
[1729576968171,5.921,168.89,168.84,11.05597242]
[1729576970274,5.9213,168.89,168.84,11.05597242]
[1729576970447,20.0,168.91,168.81,6.16804237]
[1729576970651,5.9218,168.87,168.83,11.05597242]
[1729576972165,5.9218,168.87,168.81,6.16804237]
[1729576972476,5.9218,168.87,168.82,11.05597242]
[1729576975375,5.9207,168.9,168.86,11.05597242]
[1729576975577,5.921,168.89,168.84,11.05597242]
[1729576975958,5.9206,168.9,168.84,11.05597242]
[1729576977051,5.9206,168.9,168.87,11.05597242]
[1729576977255,5.9192,168.94,168.89,11.05597242]
[1729576977463,6.61,168.98,168.89,11.05597242]
[1729576977675,5.9196,168.93,168.89,11.05597242]
[1729576979376,5.9192,168.94,168.89,11.05597242]
[1729576979569,20.0,168.95,168.89,11.05597242]
[1729576979759,6.61,168.98,168.91,11.05597242]
[1729576980083,5.9182,168.97,168.91,11.05597242]
[1729576980266,5.9185,168.96,168.91,11.05597242]
[1729576983157,6.61,168.98,168.91,11.05597242]
[1729576983371,25.9182,168.97,168.91,11.05597242]
[1729576983577,5.9182,168.97,168.91,11.05597242]
[1729576986173,0.6231497,168.99,168.93,11.05597242]
[1729576986584,0.6231497,168.99,168.93,80.54266791]
[1729576987165,0.6231497,168.99,168.94,23.776884]
[1729576987666,0.6231497,168.99,168.93,69.48669549]
[1729576987876,0.6231497,168.99,168.93,80.54266791]
[1729576989686,0.6231497,168.99,168.95,80.54266791]
[1729576989984,0.6231497,168.99,168.95,11.05597242]
[1729576991271,0.6231497,168.99,168.93,69.48669549]
[1729576991472,0.6231497,168.99,168.93,80.54266791]
[1729576994391,6.5406497,168.99,168.93,80.54266791]
[1729576998476,0.6231497,168.99,168.91,80.54266791]
[1729576998783,5.9178,168.98,168.91,80.54266791]
[1729577007606,5.9183,168.97,168.91,69.48669549]
[1729577007804,5.9179,168.98,168.91,80.54266791]
[1729577008009,0.6231497,168.99,168.91,80.54266791]
[1729577008199,5.9178,168.98,168.91,80.54266791]
[1729577016894,0.6231497,168.99,168.95,11.05597242]
[1729577018123,0.6231497,168.99,168.97,26.66837242]
[1729577018305,0.6231497,168.99,168.98,93.26357949]
[1729577025104,0.6231497,168.99,168.98,23.776884]
[1729577025321,0.6231497,168.99,168.94,69.48669549]
[1729577025521,0.6231497,168.99,168.94,80.54266791]
[1729577025910,0.6231497,168.99,168.94,69.48669549]
[1729577026116,0.6231497,168.99,168.95,11.05597242]
[1729577026708,0.6231497,168.99,168.97,11.05597242]
[1729577027001,0.6231497,168.99,168.94,69.48669549]
[1729577027208,0.6231497,168.99,168.94,80.54266791]
[1729577027922,5.9179,168.98,168.91,75.34053294]
[1729577028113,5.9179,168.98,168.93,11.05597242]
[1729577031226,5.9179,168.98,168.91,69.48669549]
[1729577031431,5.9179,168.98,168.92,11.05597242]
[1729577032512,0.6231497,168.99,168.93,69.48669549]
[1729577034037,0.6231497,168.99,168.94,11.05597242]
[1729577036436,0.6231497,168.99,168.95,93.26357949]
[1729577040315,0.6231497,168.99,168.94,23.776884]
[1729577040520,0.6231497,168.99,168.94,34.83285642]
[1729577040726,0.6231497,168.99,168.95,69.48669549]
[1729577041113,0.6231497,168.99,168.96,23.776884]
[1729577041312,0.6231497,168.99,168.97,69.48669549]
[1729577045344,0.6231497,168.99,168.96,34.83285642]
[1729577048151,0.6231497,168.99,168.94,6.17323255]
[1729577058652,5.9178,168.98,168.89,122.00983431]
[1729577058848,0.6231497,168.99,168.91,6.17219893]
[1729577059034,5.9178,168.98,168.91,6.17219893]
[1729577060339,5.9186,168.96,168.91,6.17219893]
[1729577060530,21.8342,168.96,168.87,80.54266791]
[1729577060733,21.8342,168.96,168.87,86.71669436]
[1729577061350,15.9156,168.96,168.87,6.17402645]
[1729577061553,5.9196,168.93,168.87,6.17402645]
[1729577061928,5.9193,168.94,168.87,6.17402645]
[1729577062136,21.8343,168.96,168.87,75.66072194]
[1729577062347,15.9156,168.96,168.88,11.05597242]
[1729577062641,21.8341,168.96,168.88,11.05597242]
[1729577065151,5.9189,168.95,168.87,86.71669436]
[1729577071337,15.9156,168.96,168.89,11.05597242]
[1729577072940,21.8342,168.96,168.89,11.05597242]
[1729577073142,15.9156,168.96,168.87,17.22999887]
[1729577073661,5.9192,168.95,168.89,11.05597242]
[1729577074243,15.9156,168.96,168.89,11.05597242]
[1729577074756,21.8342,168.96,168.88,11.05597242]
[1729577074956,5.9193,168.94,168.88,11.05597242]
[1729577075760,20.0,168.95,168.85,11.05597242]
[1729577075938,5.9201,168.92,168.85,11.05597242]
[1729577076138,5.9201,168.92,168.83,80.54266791]
[1729577077967,20.0,168.95,168.83,80.54266791]
[1729577078177,5.9202,168.92,168.83,80.54266791]
[1729577078371,5.9197,168.93,168.85,11.05597242]
[1729577078557,5.9192,168.94,168.85,11.05597242]
[1729577079150,20.0,168.95,168.85,11.05597242]
[1729577079475,5.9196,168.93,168.85,11.05597242]
[1729577085585,5.9192,168.94,168.85,11.05597242]
[1729577088963,5.9196,168.93,168.85,11.05597242]
[1729577090992,5.9203,168.91,168.83,6.17601261]
[1729577091173,5.9203,168.91,168.84,11.05597242]
[1729577098299,20.0,168.95,168.84,11.05597242]
[1729577099392,5.92,168.92,168.84,11.05597242]
[1729577099992,5.9204,168.91,168.84,11.05597242]
[1729577100497,5.9213,168.88,168.83,6.17601261]
[1729577100695,5.9213,168.88,168.8,11.05597242]
[1729577102073,20.0,168.89,168.82,11.05597242]
[1729577102791,25.921,168.89,168.82,11.05597242]
[1729577102994,20.0,168.89,168.8,11.05597242]
[1729577103293,5.9216,168.88,168.8,11.05597242]
[1729577103971,20.0,168.89,168.8,11.05597242]
[1729577104174,20.0,168.87,168.77,6.17594702]
[1729577104393,20.0,168.87,168.74,16.586]
[1729577104394,20.0,168.85,168.76,11.05597242]
[1729577104605,25.9227,168.85,168.76,11.05597242]
[1729577104812,5.9227,168.84,168.75,69.48669549]
[1729577105102,5.9227,168.84,168.77,11.05597242]
[1729577107203,20.0,168.85,168.77,11.05597242]
[1729577107376,20.0,168.88,168.81,11.05597242]
[1729577107699,16.0628,168.9,168.83,11.05597242]
[1729577108198,5.9198,168.93,168.85,11.05597242]
[1729577108400,15.3054,168.94,168.87,11.05597242]
[1729577108598,5.9199,168.92,168.87,11.05597242]
[1729577110909,5.9199,168.92,168.82,69.48669549]
[1729577111107,5.9199,168.92,168.84,11.05597242]
[1729577111899,5.9203,168.92,168.84,11.05597242]
[1729577115808,20.0,168.93,168.83,11.05597242]
[1729577116011,5.9209,168.9,168.83,11.05597242]
[1729577117614,5.922,168.86,168.8,11.05597242]
[1729577117819,5.9227,168.85,168.77,6.4061]
[1729577117999,5.9227,168.85,168.77,17.46207242]
[1729577118200,5.9227,168.85,168.77,11.05597242]
[1729577119116,5.9235,168.82,168.73,17.39487242]
[1729577119413,20.0,168.84,168.73,17.39487242]
[1729577119414,5.9232,168.83,168.73,17.39487242]
[1729577119612,5.9232,168.83,168.73,58.86203882]
[1729577119796,5.9232,168.83,168.75,11.05597242]
[1729577120517,20.0,168.84,168.72,22.3866957]
[1729577120821,20.0,168.84,168.72,33.44266812]
[1729577120822,5.9241,168.81,168.72,33.44266812]
[1729577123096,5.9232,168.83,168.72,33.44266812]
[1729577123302,20.0,168.82,168.74,11.05597242]
[1729577123500,11.9813,168.85,168.76,11.05597242]
[1729577124413,5.9227,168.84,168.76,11.05597242]
[1729577124717,20.0,168.84,168.75,11.05597242]
[1729577124899,20.0,168.84,168.74,23.776884]
[1729577125101,5.9232,168.83,168.72,22.3866957]
[1729577125300,5.9232,168.83,168.73,11.05597242]
[1729577126422,5.9232,168.83,168.73,52.52313882]
[1729577126621,20.0,168.84,168.73,11.05597242]
[1729577126923,5.9235,168.82,168.72,33.44266812]
[1729577127416,5.9235,168.82,168.74,11.05597242]
[1729577127621,6.0588,168.85,168.76,11.05597242]
[1729577127921,11.9812,168.85,168.76,11.05597242]
[1729577134630,5.9228,168.84,168.76,11.05597242]
[1729577135208,6.0588,168.85,168.76,11.05597242]
[1729577135409,5.9247,168.79,168.72,6.1809957]
[1729577135624,5.9249,168.78,168.69,17.63637242]
[1729577137109,5.9245,168.79,168.69,17.63637242]
[1729577137310,5.9245,168.79,168.71,11.05597242]
[1729577139234,6.0588,168.85,168.75,11.05597242]
[1729577139441,6.0588,168.85,168.77,11.05597242]
[1729577140316,5.9227,168.84,168.77,11.05597242]
[1729577140516,11.9812,168.85,168.77,11.05597242]
[1729577141530,5.9224,168.85,168.77,11.05597242]
[1729577148355,5.9218,168.87,168.81,11.05597242]
[1729577149339,5.9218,168.87,168.79,11.05597242]
[1729577150748,5.9217,168.87,168.79,11.05597242]
[1729577151051,5.9221,168.86,168.79,11.05597242]
[1729577153848,25.9215,168.88,168.81,11.05597242]
[1729577154053,20.0,168.88,168.81,11.05597242]
[1729577155058,25.9213,168.88,168.81,11.05597242]
[1729577156049,20.0,168.88,168.81,11.05597242]
[1729577157953,12.2982,168.89,168.81,11.05597242]
[1729577160164,5.9215,168.88,168.81,11.05597242]
[1729577162173,6.3772,168.89,168.81,11.05597242]
[1729577162463,20.0,168.89,168.81,11.05597242]
[1729577162666,22.514,168.9,168.81,11.05597242]
[1729577163049,5.921,168.89,168.81,11.05597242]
[1729577164856,5.9217,168.87,168.81,11.05597242]
[1729577165256,5.9217,168.87,168.79,11.05597242]
[1729577166965,5.9223,168.86,168.79,11.05597242]
[1729577168167,43.776884,168.87,168.73,6.1765798]
[1729577168350,20.0,168.83,168.72,22.355]
[1729577168668,5.9241,168.81,168.72,33.41097242]
[1729577168852,16.4327,168.86,168.76,11.05597242]
[1729577169055,5.9224,168.85,168.78,11.05597242]
[1729577169256,22.3548,168.86,168.78,11.05597242]
[1729577169564,16.4327,168.86,168.8,11.05597242]
[1729577169745,0.1,168.92,168.72,29.39167985]
[1729577169746,5.9213,168.89,168.82,11.05597242]
[1729577171846,16.4327,168.9,168.84,11.05597242]
[1729577172976,6.2197,168.92,168.84,11.05597242]
[1729577173868,20.0,168.91,168.84,11.05597242]
[1729577174375,25.9203,168.91,168.84,11.05597242]
[1729577174849,5.9197,168.93,168.86,11.05597242]
[1729577175172,15.4664,168.94,168.86,11.05597242]
[1729577175173,5.92,168.92,168.86,11.05597242]
[1729577178649,15.4664,168.94,168.86,11.05597242]
[1729577178846,25.9196,168.93,168.86,11.05597242]
[1729577179264,20.0,168.93,168.86,11.05597242]
[1729577179465,5.9199,168.92,168.86,11.05597242]
[1729577179767,25.9197,168.93,168.86,11.05597242]
[1729577180654,20.0,168.93,168.86,11.05597242]
[1729577180973,25.9197,168.93,168.86,11.05597242]
[1729577184877,20.0,168.93,168.86,11.05597242]
[1729577185057,5.9199,168.92,168.86,11.05597242]
[1729577189658,0.1,168.85,168.77,14.70625289]
[1729577189862,23.776884,168.81,168.7,1.02817504]
[1729577190057,23.776884,168.81,168.73,6.17499487]
[1729577190058,5.9254,168.77,168.73,6.17499487]
[1729577190274,43.876884,168.82,168.7,40.1209864]
[1729577190459,43.876884,168.82,168.69,15.4237]
[1729577190460,30.0,168.76,168.69,15.4237]
[1729577190658,30.0,168.76,168.69,26.47967242]
[1729577190859,30.0,168.76,168.69,32.65655042]
[1729577191362,5.9247,168.79,168.71,11.05597242]
[1729577194366,5.9247,168.79,168.7,69.48669549]
[1729577198363,37.0814,168.87,168.75,17.25645621]
[1729577198605,22.171,168.87,168.78,17.25645621]
[1729577198889,5.9221,168.86,168.78,17.25645621]
[1729577200390,22.6189,168.83,168.69,81.67737349]
[1729577200607,5.9245,168.79,168.69,81.67737349]
[1729577201204,22.6189,168.83,168.69,81.67737349]
[1729577201205,22.6189,168.83,168.7,17.25645621]
[1729577201398,5.9231,168.83,168.73,86.7431517]
[1729577201586,43.876884,168.86,168.73,17.25645621]
[1729577202614,5.9243,168.8,168.73,17.25645621]
[1729577203208,5.9237,168.82,168.73,17.25645621]
[1729577203506,5.9239,168.81,168.73,17.25645621]
[1729577211201,58.581984,168.86,168.73,17.25645621]
[1729577211405,5.9227,168.85,168.73,86.7431517]
[1729577211718,20.0,168.84,168.73,86.7431517]
[1729577212010,5.9228,168.84,168.73,86.7431517]
[1729577212617,5.9231,168.83,168.73,86.7431517]
[1729577220401,5.9231,168.83,168.75,11.039711]
[1729577221996,5.9242,168.8,168.71,6.17511495]
[1729577222201,20.0,168.79,168.68,11.039711]
[1729577222397,5.9259,168.76,168.68,11.039711]
[1729577222719,20.1,168.77,168.66,6.17749103]
[1729577223028,5.9276,168.71,168.63,1.02885333]
[1729577223202,5.9276,168.71,168.62,32.49163285]
[1729577224129,5.9265,168.74,168.66,11.039711]
[1729577224306,5.9266,168.73,168.63,69.48669549]
[1729577227038,5.9262,168.75,168.64,20.0]
[1729577227531,5.9256,168.76,168.64,20.0]
[1729577227733,5.9256,168.76,168.65,17.26941865]
[1729577228025,20.0,168.79,168.65,86.75611414]
[1729577228224,20.0,168.77,168.66,23.776884]
[1729577228425,5.9252,168.77,168.66,23.776884]
[1729577233718,20.0,168.79,168.69,69.48669549]
[1729577233944,28.5678,168.8,168.71,17.26941865]
[1729577234236,22.7352,168.84,168.71,86.75611414]
[1729577234616,5.9238,168.81,168.71,86.75611414]
[1729577237417,25.9231,168.83,168.71,86.75611414]
[1729577237612,5.9234,168.82,168.72,20.0]
[1729577238349,22.7352,168.84,168.72,20.0]
[1729577238533,28.6581,168.84,168.72,20.0]
[1729577239536,5.9231,168.83,168.72,20.0]
[1729577239737,28.6581,168.84,168.74,17.26941865]
[1729577240143,5.9233,168.83,168.72,20.0]
[1729577240458,5.9233,168.83,168.72,37.26941865]
[1729577241956,22.7352,168.84,168.72,37.26941865]
[1729577242251,5.9231,168.83,168.72,37.26941865]
[1729577242743,20.0,168.83,168.71,20.0]
[1729577242950,5.9244,168.8,168.7,32.33541865]
[1729577244757,5.9244,168.8,168.71,17.26941865]
[1729577245330,5.9231,168.83,168.74,17.26941865]
[1729577246434,5.9236,168.82,168.74,17.26941865]
[1729577248041,28.6583,168.84,168.74,17.26941865]
[1729577249158,22.7352,168.84,168.74,17.26941865]
[1729577249340,5.9231,168.83,168.74,17.26941865]
[1729577252654,22.7352,168.84,168.74,17.26941865]
[1729577252959,28.6579,168.84,168.74,17.26941865]
[1729577253757,5.9213,168.88,168.75,6.3242]
[1729577253933,5.922,168.87,168.77,17.26941865]
[1729577254138,28.4363,168.89,168.77,103.26351414]
[1729577258356,28.4363,168.89,168.81,11.03229493]
[1729577258541,22.515,168.89,168.81,11.03229493]
[1729577259764,16.1585,168.89,168.83,11.03229493]
[1729577260138,43.776884,168.88,168.77,16.5074]
[1729577260449,5.9223,168.86,168.78,8.63261956]
[1729577260747,20.0,168.88,168.8,8.63261956]
[1729577260947,20.0,168.88,168.77,85.99409549]
[1729577260948,22.0796,168.89,168.82,8.63261956]
[1729577261635,16.1585,168.89,168.82,8.63261956]
[1729577262659,22.0795,168.89,168.82,8.63261956]
[1729577264240,22.0795,168.89,168.8,8.63261956]
[1729577264437,22.0795,168.89,168.77,16.5074]
[1729577264438,5.9219,168.87,168.77,16.5074]
[1729577264642,5.9223,168.86,168.78,8.63261956]
[1729577265060,30.0,168.83,168.78,8.63261956]
[1729577265259,30.0,168.83,168.8,8.63261956]
[1729577265570,30.0,168.83,168.82,8.63261956]
[1729577266443,5.9214,168.88,168.8,8.63261956]
[1729577266746,16.1585,168.89,168.8,8.63261956]
[1729577266960,23.776884,168.88,168.77,16.5074]
[1729577267266,23.776884,168.88,168.79,8.63261956]
[1729577267965,29.698284,168.88,168.79,8.63261956]
[1729577268166,5.9214,168.88,168.79,8.63261956]
[1729577268464,16.1585,168.89,168.79,8.63261956]
[1729577268653,5.9217,168.87,168.79,8.63261956]
[1729577273555,5.9213,168.88,168.79,8.63261956]
[1729577274777,5.9213,168.88,168.81,8.63261956]
[1729577276265,5.9224,168.85,168.77,16.5074]
[1729577276468,16.2585,168.89,168.8,8.63261956]
[1729577276469,20.0,168.87,168.8,8.63261956]
[1729577277452,30.0,168.82,168.8,8.63261956]
[1729577278878,20.0,168.87,168.8,8.63261956]
[1729577279171,5.9214,168.88,168.77,16.5074]
[1729577279172,16.1585,168.89,168.82,8.63261956]
[1729577279377,30.0,168.83,168.82,8.63261956]
[1729577279964,16.1585,168.89,168.82,8.63261956]
[1729577280952,22.0796,168.89,168.78,23.776884]
[1729577281147,22.0796,168.89,168.81,8.63261956]
[1729577284881,16.1585,168.89,168.77,16.5074]
[1729577285069,5.9219,168.87,168.77,16.5074]
[1729577285383,5.9219,168.87,168.79,8.63261956]
[1729577286889,5.922,168.87,168.79,8.63261956]
[1729577287386,22.0798,168.89,168.81,8.63261956]
[1729577287586,16.1585,168.89,168.83,8.63261956]
[1729577287762,30.0,168.84,168.83,8.63261956]
[1729577288657,25.9199,168.92,168.83,8.63261956]
[1729577288978,25.9199,168.92,168.86,8.63261956]
[1729577289182,7.06353976,168.95,168.81,6.4917]
[1729577289183,22.1871,168.98,168.9,8.63261956]
[1729577289378,30.0,168.91,168.9,8.63261956]
[1729577289676,5.9182,168.97,168.9,8.63261956]
[1729577290687,22.1871,168.98,168.9,8.63261956]
[1729577291002,20.0,168.97,168.9,8.63261956]
[1729577292185,15.8155,168.98,168.94,8.63261956]
[1729577292387,0.6231497,168.99,168.94,8.63261956]
[1729577295679,0.6231497,168.99,168.92,8.63261956]
[1729577295869,6.5406497,168.99,168.89,6.2934]
[1729577296187,6.5406497,168.99,168.91,8.63261956]
[1729577296792,6.5406497,168.99,168.89,6.2934]
[1729577296979,6.5406497,168.99,168.91,8.63261956]
[1729577297575,0.6231497,168.99,168.91,8.63261956]
[1729577298001,5.9183,168.97,168.89,8.63261956]
[1729577298387,30.0,168.94,168.89,8.63261956]
[1729577302498,35.9195,168.94,168.85,24.27961956]
[1729577309199,30.0,168.94,168.85,15.647]
[1729577309402,5.9196,168.93,168.85,15.647]
[1729577309583,30.0,168.92,168.85,15.647]
[1729577311023,30.0,168.92,168.82,6.18087217]
[1729577311300,20.0,168.89,168.8,8.63261956]
[1729577311507,5.9217,168.88,168.8,8.63261956]
[1729577312107,30.0,168.87,168.8,8.63261956]
[1729577312406,30.0,168.87,168.83,8.63261956]
[1729577313285,30.0,168.87,168.8,8.63261956]
[1729577314092,30.0,168.87,168.82,8.63261956]
[1729577318197,5.921,168.89,168.82,8.63261956]
[1729577320711,5.9195,168.94,168.86,8.63261956]
[1729577321018,5.9189,168.95,168.86,8.63261956]
[1729577321199,5.9189,168.95,168.83,85.17889549]
[1729577321200,5.9189,168.95,168.88,8.63261956]
[1729577321404,30.0,168.89,168.88,8.63261956]
[1729577321715,5.9189,168.95,168.88,8.63261956]
[1729577322121,22.0009,168.96,168.9,8.63261956]
[1729577322410,15.788,168.96,168.92,8.63261956]
[1729577322603,0.6231497,168.99,168.92,8.63261956]
[1729577322804,6.5406497,168.99,168.92,8.63261956]
[1729577323526,0.6231497,168.99,168.92,8.63261956]
[1729577323699,6.5406497,168.99,168.92,8.63261956]
[1729577324619,20.0,168.98,168.92,8.63261956]
[1729577324920,5.918,168.98,168.92,8.63261956]
[1729577325215,20.6231497,168.99,168.9,8.63261956]
[1729577325402,5.9182,168.97,168.9,8.63261956]
[1729577326929,5.9178,168.98,168.87,20.0]
[1729577327094,5.9178,168.98,168.9,8.63261956]
[1729577327710,30.0,168.93,168.9,8.63261956]
[1729577329533,5.9178,168.98,168.9,8.63261956]
[1729577331121,5.9178,168.98,168.87,20.0]
[1729577331327,5.9178,168.98,168.91,8.63261956]
[1729577337819,0.6231497,168.99,168.93,8.63261956]
[1729577342921,0.6231497,168.99,168.95,8.63261956]
[1729577343109,0.6231497,168.99,168.97,8.63261956]
[1729577343528,30.0,168.98,168.97,8.63261956]
[1729577345115,0.6231497,168.99,168.97,8.63261956]
[1729577347135,0.6231497,168.99,168.95,8.63261956]
[1729577348636,0.6231497,168.99,168.97,8.63261956]
[1729577351021,0.6231497,168.99,168.97,78.11931505]
[1729577351219,0.6231497,168.99,168.97,69.48669549]
[1729577351636,0.6231497,168.99,168.98,8.63261956]
[1729577351814,0.6231497,168.99,168.96,65.26759092]
[1729577352016,0.6231497,168.99,168.97,8.63261956]
[1729577352835,0.6231497,168.99,168.96,58.69599092]
[1729577353017,0.6231497,168.99,168.97,8.63261956]
[1729577358125,0.6231497,168.99,168.98,8.63261956]
[1729577362542,0.6231497,168.99,168.96,51.33781048]
[1729577362835,0.6231497,168.99,168.96,8.63261956]
[1729577363216,0.6231497,168.99,168.93,69.48669549]
[1729577363429,0.6231497,168.99,168.95,8.63261956]
[1729577366844,0.6231497,168.99,168.92,6.0519]
[1729577367037,0.6231497,168.99,168.95,8.63261956]
[1729577369624,0.6231497,168.99,168.93,69.48669549]
[1729577369819,0.6231497,168.99,168.95,8.63261956]
[1729577370236,0.6231497,168.99,168.92,6.0519]
[1729577370549,0.6231497,168.99,168.94,8.63261956]
[1729577374050,5.918,168.98,168.91,16.5138]
[1729577374348,5.9184,168.97,168.9,8.63261956]
[1729577374539,5.9191,168.95,168.87,8.63261956]
[1729577374740,5.9196,168.94,168.87,8.63261956]
[1729577377449,5.9196,168.94,168.84,6.17879291]
[1729577377650,5.9196,168.93,168.86,8.63261956]
[1729577383050,5.9196,168.93,168.84,6.17879291]
[1729577383263,5.9203,168.91,168.84,6.17879291]
[1729577383473,5.9203,168.91,168.85,8.63261956]
[1729577383969,6.3947,168.9,168.81,1.02867983]
[1729577384158,6.3947,168.9,168.77,113.71968641]
[1729577384159,5.9235,168.82,168.77,44.23299092]
[1729577384364,5.9237,168.82,168.76,8.63261956]
[1729577384672,43.776884,168.88,168.76,8.63261956]
[1729577384865,5.9228,168.84,168.76,8.63261956]
[1729577385049,5.9237,168.82,168.76,8.63261956]
[1729577385245,5.9237,168.82,168.74,23.69381956]
[1729577385766,5.9245,168.8,168.73,6.18019278]
[1729577386066,5.9237,168.82,168.74,8.63261956]
[1729577386270,5.9243,168.8,168.73,6.18019278]
[1729577391469,21.6145,168.87,168.78,8.63261956]
[1729577391772,21.6145,168.87,168.82,8.63261956]
[1729577392070,22.4779,168.91,168.82,8.63261956]
[1729577392249,5.9206,168.9,168.84,8.63261956]
[1729577393770,5.921,168.89,168.84,8.63261956]
[1729577394350,5.921,168.89,168.81,13.47910218]
[1729577395281,5.9215,168.88,168.79,33.47910218]
[1729577398677,5.921,168.89,168.79,33.47910218]
[1729577398872,5.9214,168.88,168.79,33.47910218]
[1729577399078,5.9214,168.88,168.81,13.47910218]
[1729577400267,23.776884,168.89,168.79,13.47910218]
[1729577401383,20.0,168.9,168.81,13.47910218]
[1729577401566,5.9211,168.89,168.81,13.47910218]
[1729577401878,5.9214,168.88,168.81,13.47910218]
[1729577403157,5.9214,168.88,168.79,13.47910218]
[1729577404269,20.0,168.88,168.79,13.47910218]
[1729577404576,5.922,168.86,168.79,13.47910218]
[1729577405878,5.9224,168.85,168.79,13.47910218]
[1729577406675,23.776884,168.89,168.76,13.90288463]
[1729577406676,20.0,168.84,168.76,6.16051547]
[1729577406984,42.4314,168.84,168.74,16.1226]
[1729577407173,42.4314,168.84,168.72,82.96579767]
[1729577407174,5.9242,168.8,168.72,13.47910218]
[1729577407482,5.9245,168.79,168.71,6.0361]
[1729577407980,5.9245,168.79,168.7,35.98208784]
[1729577408185,5.9256,168.76,168.7,22.50298566]
[1729577408563,5.9256,168.76,168.7,6.16328566]
[1729577408872,5.9256,168.76,168.67,19.85110218]
[1729577409986,5.9256,168.76,168.68,20.0]
[1729577410998,5.9265,168.74,168.66,35.61208693]
[1729577411163,43.776884,168.77,168.64,13.47910218]
[1729577411481,5.9269,168.73,168.63,6.16832216]
[1729577411688,5.927,168.72,168.64,13.47910218]
[1729577411867,5.927,168.72,168.63,6.16832216]
[1729577412070,5.927,168.72,168.63,19.64742434]
[1729577412886,5.927,168.72,168.63,6.16832216]
[1729577413093,20.0,168.75,168.63,19.64742434]
[1729577413382,5.9262,168.74,168.65,13.47910218]
[1729577414488,20.0,168.76,168.65,13.47910218]
[1729577414691,5.9259,168.75,168.65,13.47910218]
[1729577414870,20.0,168.76,168.65,13.47910218]
[1729577415182,5.9263,168.74,168.65,13.47910218]
[1729577415487,5.9263,168.74,168.64,43.776884]
[1729577415672,5.9263,168.74,168.64,57.25598618]
[1729577416189,20.0,168.76,168.64,57.25598618]
[1729577416367,5.9274,168.71,168.63,6.16832216]
[1729577416568,5.9277,168.7,168.62,6.2553]
[1729577416769,5.928,168.7,168.62,20.0]
[1729577416975,5.928,168.7,168.62,33.47910218]
[1729577417887,20.0,168.73,168.62,33.47910218]
[1729577418092,5.9273,168.71,168.62,33.47910218]
[1729577419103,5.9273,168.71,168.65,13.47910218]
[1729577420385,5.9273,168.71,168.62,20.0]
[1729577420586,5.928,168.69,168.6,6.16617273]
[1729577420788,6.171,168.7,168.65,13.47910218]
[1729577421014,16.3575,168.72,168.65,13.47910218]
[1729577421015,22.2845,168.72,168.65,13.47910218]
[1729577421505,30.0,168.68,168.65,13.47910218]
[1729577421798,5.9273,168.71,168.64,13.47910218]
[1729577422186,16.3575,168.72,168.68,13.47910218]
[1729577422792,12.1574,168.74,168.68,13.47910218]
[1729577422793,6.2311,168.74,168.68,13.47910218]
[1729577423475,20.9265,168.76,168.7,13.47910218]
[1729577424202,20.0,168.75,168.7,13.47910218]
[1729577426005,20.0,168.75,168.72,13.47910218]
[1729577426209,20.0,168.75,168.69,13.47910218]
[1729577427988,20.0,168.75,168.71,13.47910218]
[1729577428192,12.3608,168.78,168.73,13.47910218]
[1729577428522,12.3608,168.78,168.76,8.63661491]
[1729577428815,30.0,168.77,168.74,8.63661491]
[1729577429393,5.9255,168.76,168.72,8.63661491]
[1729577429999,5.9259,168.75,168.72,8.63661491]
[1729577430711,5.9259,168.75,168.65,6.3087]
[1729577430912,5.9259,168.75,168.71,8.63661491]
[1729577432103,25.9264,168.74,168.64,23.18056916]
[1729577432287,20.0,168.74,168.7,8.63661491]
[1729577432494,5.9269,168.72,168.7,8.63661491]
[1729577432695,5.9269,168.72,168.68,8.63661491]
[1729577432896,20.0,168.72,168.7,8.63661491]